fUST/lending_fUST_20250505
["ID","MTS","AMOUNT","RATE_DAILY","PERIOD"]
[359859391,1746376246848,-500.0,0.00038973,5]
[359859393,1746376246858,-502.62570118,0.00038973,5]
[359859395,1746376246868,-500.0,0.00038973,5]
[359859397,1746376246877,-500.0,0.00038973,5]
[359859399,1746376246887,-245.0,0.00038986,15]
[359859401,1746376246897,-151.0,0.00038986,15]
[359859403,1746376246907,-151.0,0.00038986,15]
[359859406,1746376246917,-151.0,0.00038986,15]
[359859408,1746376246928,-151.0,0.00038986,15]
[359859410,1746376246938,-151.0,0.00038986,15]
[359859412,1746376246947,-151.0,0.00038986,15]
[359859414,1746376246957,-462.85180872,0.00038989,3]
[359859416,1746376246967,-925.70361744,0.0003899,3]
[359859418,1746376246977,-1237.0,0.00038998,33]
[359859420,1746376246986,-1604.9,0.00038998,15]
[359859422,1746376246995,-33867.10125104,0.00038999,2]
[359859431,1746376247078,-352339.86649177,0.00038999,2]
[359859434,1746376247089,-1346.32693012,0.00038999,2]
[359859439,1746376247132,-160.0,0.00029,3]
[359859441,1746376247143,-151.0,0.00038904,2]
[359859443,1746376247152,-885.15447597,0.00038999,2]
[359859445,1746376247163,-1317.52103089,0.00038999,2]
[359859450,1746376247192,160.0,0.00027,3]
[359861579,1746376503792,-252.08878523,0.00019171,2]
[359861580,1746376509432,-151.0,0.00019171,2]
[359861581,1746376513660,-96.91121477,0.00019171,2]
[359861610,1746377141141,-872.34905945,0.00025204,7]
[359861611,1746377141162,-11.26088607,0.00025452,2]
[359861628,1746377233143,-427.4433552,0.00025452,2]
[359861629,1746377250160,-234.32822017,0.00025452,2]
[359861630,1746377250182,-222.848658,0.00027397,2]
[359861631,1746377250201,-200.0,0.00028169,2]
[359861632,1746377250221,-1200.0,0.0002817,2]
[359861633,1746377250248,-300.0,0.0002817,2]
[359861634,1746377250268,-4161.28433531,0.00028171,2]
[359861635,1746377250289,-869.5243908,0.00028171,2]
[359861636,1746377250311,-172.685,0.0003,2]
[359861637,1746377250331,-420.0,0.00030418,2]
[359861638,1746377250351,-1600.0,0.0003055,2]
[359861639,1746377250371,-170.64428718,0.00030833,2]
[359861640,1746377250390,-8406.8021069,0.00030899,2]
[359861641,1746377254097,-7469.28204755,0.00030899,2]
[359861693,1746377431932,-804.61795125,0.00028799,2]
[359861695,1746377431942,-300.0,0.00030897,2]
[359861697,1746377431951,-500.0,0.00030898,2]
[359861699,1746377431961,-500.0,0.00030898,2]
[359861701,1746377431970,-500.0,0.00030898,2]
[359861703,1746377431980,-603.34959771,0.00030898,2]
[359861705,1746377431990,-262.8634121,0.00030898,2]
[359861707,1746377431999,-500.0,0.00030898,2]
[359861709,1746377432008,-500.0,0.00030898,2]
[359861711,1746377432018,-500.0,0.00030898,2]
[359861713,1746377432027,-500.0,0.00030898,2]
[359861715,1746377432037,-500.0,0.00030898,2]
[359861717,1746377432046,-500.0,0.00030898,2]
[359861719,1746377432055,-500.0,0.00030898,2]
[359861721,1746377432065,-180.860309,0.00030898,2]
[359861723,1746377432074,-278.48794008,0.00030898,2]
[359861725,1746377432083,-543.08013721,0.00030898,2]
[359861727,1746377432093,-500.0,0.00030898,2]
[359861729,1746377432103,-500.0,0.00030898,2]
[359861731,1746377432113,-500.0,0.00030898,2]
[359861733,1746377432122,-500.0,0.00030898,2]
[359861735,1746377432131,-20018.46,0.000309,2]
[359861737,1746377432141,-160.0,0.00031037,2]
[359861739,1746377432150,-181.07317022,0.00031276,7]
[359861741,1746377432159,-247.41178468,0.000318,2]
[359861743,1746377432169,-500.0,0.0003186,5]
[359861745,1746377432178,-640.79851168,0.0003186,2]
[359861747,1746377432187,-500.0,0.00032,5]
[359861749,1746377432197,-511.4470139,0.00032,5]
[359861751,1746377432207,-500.0,0.00032075,5]
[359861753,1746377432216,-500.0,0.00032075,5]
[359861755,1746377432225,-500.0,0.00032775,5]
[359861757,1746377432234,-166.987,0.00032831,33]
[359861759,1746377432244,-222.848658,0.00033165,2]
[359861761,1746377432253,-804.61795125,0.00033799,2]
[359861763,1746377432263,-500.0,0.00035257,7]
[359861765,1746377432272,-650.70378782,0.00035257,7]
[359861767,1746377432282,-500.0,0.00035257,7]
[359861769,1746377432293,-500.0,0.00035257,7]
[359861771,1746377432304,-275.20537341,0.00035257,7]
[359861773,1746377432314,-413.02298617,0.00035258,7]
[359861775,1746377432323,-212.82492819,0.00035258,7]
[359861777,1746377432333,-396.93887817,0.00035258,7]
[359861779,1746377432344,-267.45627141,0.00035258,7]
[359861781,1746377432354,-500.0,0.00036083,60]
[359861783,1746377432364,-1382.5913755,0.00037049,4]
[359861785,1746377432373,-600.0,0.00037179,60]
[359861787,1746377432384,-500.0,0.00037479,5]
[359861790,1746377432395,-503.89359405,0.00037554,5]
[359861792,1746377432404,-500.0,0.00037554,5]
[359861794,1746377432413,-154.2938119,0.00038247,30]
[359861796,1746377432423,-153.0,0.00038247,30]
[359861798,1746377432432,-153.0,0.00038247,30]
[359861800,1746377432441,-153.0,0.00038247,30]
[359861802,1746377432451,-153.0,0.00038247,30]
[359861804,1746377432459,-153.0,0.00038247,30]
[359861805,1746377432469,-153.0,0.00038247,30]
[359861808,1746377432478,-153.0,0.00038247,30]
[359861810,1746377432488,-499.49260808,0.00038318,5]
[359861811,1746377432497,-150.0,0.000387,2]
[359861813,1746377432506,-303.78683134,0.00038788,2]
[359861815,1746377432515,-804.61795125,0.00038799,2]
[359861817,1746377432525,-303.7868313,0.00038816,2]
[359861819,1746377432534,-303.7868313,0.00038844,2]
[359861821,1746377432543,-303.7868313,0.00038872,2]
[359861823,1746377432552,-500.0,0.00038873,5]
[359861825,1746377432561,-160.62856788,0.00038873,5]
[359861828,1746377432573,-139.37143212,0.00038873,5]
[359861830,1746377432582,-555.42217047,0.00038878,3]
[359861845,1746377432592,-2104.74037926,0.00038888,4]
[359861848,1746377432727,-34917.6726196,0.00038888,4]
[359861850,1746377432737,-34917.6726196,0.00038888,4]
[359861852,1746377432746,-34917.6726196,0.00038888,4]
[359861854,1746377432756,-34917.6726196,0.00038888,4]
[359861856,1746377432765,-555.42217047,0.00038894,3]
[359861858,1746377432774,-166.28,0.000389,2]
[359861860,1746377432784,-160.0,0.000389,58]
[359861862,1746377432793,-202.22089982,0.000389,2]
[359861864,1746377432806,-101.56593148,0.000389,2]
[359861866,1746377432815,-999.0,0.00038902,120]
[359861868,1746377432824,-400.16175138,0.00038904,15]
[359861870,1746377432834,-519.59724508,0.00038904,15]
[359861872,1746377432843,-400.0,0.00038904,15]
[359861874,1746377432852,-400.0,0.00038904,15]
[359861876,1746377432862,-400.0,0.00038904,15]
[359861878,1746377432871,-400.0,0.00038904,15]
[359861881,1746377432881,-400.0,0.00038904,15]
[359861883,1746377432890,-400.0,0.00038904,15]
[359861885,1746377432899,-200.0,0.00038904,15]
[359861887,1746377432909,-400.0,0.00038904,15]
[359861889,1746377432918,-400.0,0.00038904,15]
[359861891,1746377432928,-400.0,0.00038904,15]
[359861893,1746377432938,-400.0,0.00038904,15]
[359861895,1746377432946,-400.0,0.00038904,15]
[359861897,1746377432956,-400.0,0.00038904,15]
[359861899,1746377432965,-400.0,0.00038904,15]
[359861901,1746377432974,-400.0,0.00038904,15]
[359861903,1746377432983,-300.014447,0.00038904,15]
[359861905,1746377432992,-400.0,0.00038904,15]
[359861907,1746377433001,-448.8,0.00038904,15]
[359861909,1746377433010,-400.0,0.00038904,15]
[359861911,1746377433019,-400.0,0.00038904,15]
[359861912,1746377433029,-400.0,0.00038904,15]
[359861915,1746377433039,-400.0,0.00038904,15]
[359861916,1746377433049,-400.0,0.00038904,15]
[359861919,1746377433059,-400.0,0.00038904,15]
[359861921,1746377433069,-400.0,0.00038904,15]
[359861923,1746377433078,-469.13,0.00038904,15]
[359861925,1746377433087,-400.0,0.00038904,15]
[359861927,1746377433097,-400.0,0.00038904,15]
[359861929,1746377433106,-400.0,0.00038904,15]
[359861931,1746377433116,-500.0,0.00038904,15]
[359861933,1746377433126,-400.0,0.00038904,15]
[359861935,1746377433136,-400.0,0.00038904,15]
[359861937,1746377433145,-500.61399207,0.00038904,15]
[359861939,1746377433155,-400.0,0.00038904,15]
[359861940,1746377433164,-492.15,0.00038904,15]
[359861941,1746377433174,-446.9,0.00038904,15]
[359861942,1746377433184,-400.0,0.00038904,15]
[359861943,1746377433193,-329.17,0.00038904,15]
[359861944,1746377433202,-400.0,0.00038904,15]
[359861945,1746377433212,-400.0,0.00038904,15]
[359861946,1746377433222,-492.01,0.00038904,15]
[359861947,1746377433232,-400.0,0.00038904,15]
[359861948,1746377433241,-280.28709489,0.00038904,2]
[359861949,1746377433251,-400.0,0.00038904,15]
[359861950,1746377433260,-501.4554595,0.00038904,15]
[359861951,1746377433270,-400.0,0.00038904,15]
[359861952,1746377433279,-400.0,0.00038904,15]
[359861953,1746377433289,-500.0,0.00038904,15]
[359861954,1746377433303,-400.0,0.00038904,15]
[359861955,1746377433313,-400.0,0.00038904,15]
[359861956,1746377433322,-500.0,0.00038904,15]
[359861957,1746377433333,-400.0,0.00038904,15]
[359861958,1746377433343,-400.0,0.00038904,15]
[359861960,1746377433352,-400.0,0.00038904,15]
[359861962,1746377433361,-500.0,0.00038904,15]
[359861964,1746377433373,-500.0,0.00038904,15]
[359861966,1746377433384,-401.73218719,0.00038904,15]
[359861968,1746377433394,-400.0,0.00038904,15]
[359861970,1746377433403,-404.86,0.00038904,15]
[359861972,1746377433412,-500.0,0.00038904,15]
[359861974,1746377433422,-400.0,0.00038904,15]
[359861976,1746377433432,-400.0,0.00038904,15]
[359861978,1746377433442,-215.28,0.00038904,15]
[359861980,1746377433451,-500.0,0.00038904,15]
[359861982,1746377433461,-533.41035986,0.00038904,14]
[359861984,1746377433471,-324.71075026,0.00038904,15]
[359861994,1746377433552,-75.28924974,0.00038904,15]
[359861996,1746377433563,-400.0,0.00038904,15]
[359861998,1746377433572,-219.44,0.00038904,15]
[359862000,1746377433582,-400.0,0.00038904,15]
[359862002,1746377433591,-400.0,0.00038904,15]
[359862004,1746377433601,-70.84029426,0.00038904,15]
[359863050,1746377446037,-101.24970574,0.00038904,15]
[359863051,1746377446048,-400.0,0.00038904,15]
[359863052,1746377446057,-243.99029429,0.00038904,15]
[359863053,1746377446070,-290.46970571,0.00038904,15]
[359863054,1746377446080,-412.76029429,0.00038904,15]
[359863055,1746377446092,-138.86970571,0.00038904,15]
[359863056,1746377446101,-551.63,0.00038904,15]
[359863057,1746377446110,-551.63,0.00038904,15]
[359863058,1746377446120,-551.63,0.00038904,15]
[359863059,1746377446129,-551.63,0.00038904,15]
[359863060,1746377446139,-551.63,0.00038904,15]
[359863061,1746377446148,-551.63,0.00038904,15]
[359863062,1746377446158,-551.63,0.00038904,15]
[359863063,1746377446167,-551.63,0.00038904,15]
[359863064,1746377446176,-551.63,0.00038904,15]
[359863066,1746377446185,-551.63,0.00038904,15]
[359863067,1746377446195,-551.63,0.00038904,15]
[359863069,1746377446205,-465.51,0.00038904,15]
[359863071,1746377446215,-551.63,0.00038904,15]
[359863073,1746377446225,-551.63,0.00038904,15]
[359863074,1746377446235,-551.63,0.00038904,15]
[359863076,1746377446245,-551.63,0.00038904,15]
[359863078,1746377446255,-551.63,0.00038904,15]
[359863079,1746377446264,-551.63,0.00038904,15]
[359863081,1746377446274,-551.63,0.00038904,15]
[359863082,1746377446284,-551.63,0.00038904,15]
[359863084,1746377446293,-551.63,0.00038904,15]
[359863086,1746377446307,-551.63,0.00038904,15]
[359863088,1746377446318,-400.0,0.00038904,15]
[359863089,1746377446327,-551.63,0.00038904,15]
[359863091,1746377446337,-551.86089606,0.00038904,15]
[359863093,1746377446349,-400.0,0.00038904,15]
[359863094,1746377446358,-400.0,0.00038904,15]
[359863095,1746377446367,-386.05,0.00038904,15]
[359863096,1746377446379,-400.0,0.00038904,15]
[359863097,1746377446388,-194.62,0.00038904,15]
[359863098,1746377446397,-400.0,0.00038904,15]
[359863099,1746377446406,-545.62,0.00038904,15]
[359863100,1746377446415,-400.0,0.00038904,15]
[359863101,1746377446424,-469.31,0.00038904,15]
[359863102,1746377446433,-400.0,0.00038904,15]
[359863103,1746377446443,-526.38953586,0.00038904,15]
[359863104,1746377446452,-400.0,0.00038904,15]
[359863105,1746377446461,-400.0,0.00038904,15]
[359863106,1746377446471,-400.0,0.00038904,15]
[359863107,1746377446480,-400.0,0.00038904,15]
[359863108,1746377446489,-400.0,0.00038904,15]
[359863109,1746377446497,-400.0,0.00038904,15]
[359863110,1746377446507,-400.0,0.00038904,15]
[359863111,1746377446516,-400.0,0.00038904,15]
[359863112,1746377446525,-465.28,0.00038904,15]
[359863113,1746377446535,-400.0,0.00038904,15]
[359863114,1746377446544,-400.0,0.00038904,15]
[359863115,1746377446554,-400.0,0.00038904,15]
[359863116,1746377446563,-329.79,0.00038904,15]
[359863117,1746377446572,-400.0,0.00038904,15]
[359863118,1746377446582,-455.33,0.00038904,15]
[359863119,1746377446591,-400.0,0.00038904,15]
[359863120,1746377446601,-400.0,0.00038904,15]
[359863121,1746377446611,-356.6,0.00038904,15]
[359863122,1746377446621,-400.0,0.00038904,15]
[359863123,1746377446631,-400.0,0.00038904,15]
[359863124,1746377446640,-418.2,0.00038904,15]
[359863125,1746377446650,-509.2,0.00038904,15]
[359863126,1746377446659,-400.0,0.00038904,15]
[359863127,1746377446668,-278.87757745,0.00038904,15]
[359863128,1746377446678,-400.0,0.00038904,15]
[359863129,1746377446687,-477.72,0.00038904,15]
[359863130,1746377446696,-400.0,0.00038904,15]
[359863131,1746377446706,-400.0,0.00038904,15]
[359863132,1746377446715,-400.0,0.00038904,15]
[359863133,1746377446724,-400.0,0.00038904,15]
[359863134,1746377446734,-400.0,0.00038904,15]
[359863135,1746377446743,-400.0,0.00038904,15]
[359863136,1746377446752,-400.0,0.00038904,15]
[359863137,1746377446762,-326.99,0.00038904,15]
[359863138,1746377446771,-400.0,0.00038904,15]
[359863139,1746377446781,-449.73,0.00038904,15]
[359863140,1746377446790,-400.0,0.00038904,15]
[359863141,1746377446799,-400.0,0.00038904,15]
[359863142,1746377446809,-506.89,0.00038904,15]
[359863143,1746377446820,-400.0,0.00038904,15]
[359863144,1746377446829,-400.0,0.00038904,15]
[359863145,1746377446839,-400.0,0.00038904,15]
[359863146,1746377446848,-198.14,0.00038904,15]
[359863147,1746377446859,-500.0,0.00038904,15]
[359863148,1746377446868,-400.0,0.00038904,15]
[359863149,1746377446877,-400.0,0.00038904,15]
[359863150,1746377446886,-241.8093857,0.00038904,15]
[359863151,1746377446896,-400.0,0.00038904,15]
[359863152,1746377446905,-400.0,0.00038904,15]
[359863153,1746377446914,-400.0,0.00038904,15]
[359863154,1746377446924,-320.70770864,0.00038904,15]
[359863214,1746378351121,-365.86411878,0.00025205,2]
[359863215,1746378351141,-175.26638988,0.00027397,2]
[359863235,1746378425132,-167.41840753,0.00025205,2]
[359863236,1746378425152,-161.02698938,0.00027397,2]
[359863237,1746378425172,-25.29740212,0.00027397,2]
[359863238,1746378425192,-633.14685007,0.00028699,2]
[359863239,1746378425211,-179.9460162,0.00031276,7]
[359863240,1746378425234,-500.0,0.00031781,2]
[359863241,1746378425255,-200.563792,0.00033165,2]
[359863242,1746378425276,-250.0,0.00035642,2]
[359863243,1746378425298,-1600.0,0.0003617,3]
[359863244,1746378425317,-1462.0008184,0.00036171,2]
[359863245,1746378425338,-400.0,0.00036802,2]
[359863246,1746378425358,-449.42255904,0.00036803,2]
[359863250,1746378450090,-266.0203103,0.00035882,2]
[359863251,1746378450112,-1693.95195436,0.00036803,2]
[359863252,1746378450142,-152.19974355,0.00036803,2]
[359863253,1746378450168,-1330.99403117,0.00036803,2]
[359863282,1746378632134,-710.64646153,0.00034703,2]
[359863284,1746378632144,-218.36637992,0.00036704,2]
[359863286,1746378632155,-400.0,0.00037047,2]
[359863288,1746378632164,-811.0,0.00037047,3]
[359863289,1746378632174,-16998.51416876,0.00037048,2]
[359863291,1746378632184,-500.0,0.00037048,15]
[359863293,1746378632193,-500.0,0.00037048,15]
[359863295,1746378632203,-500.0,0.00037048,15]
[359863297,1746378632212,-500.0,0.00037048,15]
[359863298,1746378632221,-500.0,0.00037048,15]
[359863300,1746378632231,-500.0,0.00037048,15]
[359863302,1746378632240,-461.11941537,0.00037048,15]
[359863305,1746378632249,-500.0,0.00037048,15]
[359863308,1746378632258,-374.99566786,0.00037048,15]
[359863311,1746378632267,-1252.914051,0.00037049,4]
[359863312,1746378632276,-153.0,0.00037425,30]
[359863313,1746378632287,-153.0,0.00037425,30]
[359863314,1746378632295,-284.25503249,0.00037769,2]
[359863315,1746378632306,-1005.19469772,0.00037869,2]
[359863316,1746378632316,-14749.68940939,0.0003787,2]
[359863317,1746378632326,-284.25503246,0.00038075,2]
[359863318,1746378632335,-284.25503246,0.00038381,2]
[359863319,1746378632344,-284.25503246,0.00038687,2]
[359863320,1746378632354,-360.0,0.00038731,14]
[359863321,1746378632363,-360.0,0.00038731,14]
[359863322,1746378632372,-360.0,0.00038731,14]
[359863323,1746378632381,-360.0,0.00038731,14]
[359863324,1746378632390,-360.0,0.00038731,14]
[359863325,1746378632401,-360.0,0.00038731,14]
[359863326,1746378632410,-360.0,0.00038731,14]
[359863327,1746378632419,-164.21011834,0.00038804,2]
[359863328,1746378632428,-160.0,0.00038854,2]
[359863329,1746378632437,-289.11609032,0.00038869,7]
[359863330,1746378632447,-455.49265147,0.00038869,15]
[359863331,1746378632457,-277.85721472,0.00038869,15]
[359863332,1746378632466,-187.21938998,0.00038869,15]
[359863333,1746378632475,-500.0,0.00038869,15]
[359863334,1746378632485,-500.0,0.00038869,15]
[359863335,1746378632494,-341.32009981,0.00038869,15]
[359863336,1746378632503,-20000.0,0.0003887,15]
[359863337,1746378632513,-20000.0,0.0003887,7]
[359863338,1746378632523,-259.19701288,0.00038894,3]
[359863339,1746378632534,-999.0,0.00038899,120]
[359863340,1746378632543,-515.97252274,0.000389,30]
[359863341,1746378632554,-160.0,0.000389,58]
[359863342,1746378632564,-10176.72914831,0.000389,30]
[359863343,1746378632575,-11823.27085169,0.000389,30]
[359863344,1746378632584,-6082.8237812,0.00038902,2]
[359863345,1746378632594,-207.4,0.00038903,15]
[359863346,1746378632603,-500.0,0.00038904,15]
[359863347,1746378632612,-400.0,0.00038904,15]
[359863348,1746378632622,-400.0,0.00038904,15]
[359863349,1746378632631,-400.0,0.00038904,15]
[359863350,1746378632640,-400.0,0.00038904,15]
[359863351,1746378632650,-400.0,0.00038904,15]
[359863352,1746378632659,-500.0,0.00038904,15]
[359863353,1746378632668,-400.0,0.00038904,15]
[359863354,1746378632677,-236.85686283,0.00038904,15]
[359863355,1746378632687,-400.0,0.00038904,15]
[359863356,1746378632696,-512.19,0.00038904,15]
[359863357,1746378632707,-400.0,0.00038904,15]
[359863358,1746378632717,-400.0,0.00038904,15]
[359863359,1746378632726,-400.0,0.00038904,15]
[359863360,1746378632735,-353.3,0.00038904,15]
[359863361,1746378632744,-400.0,0.00038904,2]
[359863362,1746378632754,-400.0,0.00038904,2]
[359863363,1746378632763,-400.0,0.00038904,15]
[359863364,1746378632772,-400.0,0.00038904,15]
[359863365,1746378632786,-400.0,0.00038904,15]
[359863366,1746378632795,-400.0,0.00038904,15]
[359863367,1746378632805,-400.0,0.00038904,15]
[359863368,1746378632815,-341.16426471,0.00038904,15]
[359863369,1746378632824,-400.0,0.00038904,15]
[359863370,1746378632833,-400.0,0.00038904,15]
[359863371,1746378632843,-516.99,0.00038904,15]
[359863372,1746378632852,-446.11,0.00038904,15]
[359863373,1746378632862,-400.0,0.00038904,15]
[359863374,1746378632871,-400.0,0.00038904,15]
[359863375,1746378632881,-279.03,0.00038904,15]
[359863376,1746378632890,-400.0,0.00038904,15]
[359863377,1746378632900,-405.55,0.00038904,15]
[359863378,1746378632910,-400.0,0.00038904,15]
[359863379,1746378632919,-400.0,0.00038904,15]
[359863380,1746378632928,-400.0,0.00038904,15]
[359863381,1746378632938,-169.85,0.00038904,15]
[359863382,1746378632947,-400.0,0.00038904,15]
[359863383,1746378632957,-400.0,0.00038904,15]
[359863384,1746378632967,-400.0,0.00038904,15]
[359863385,1746378632977,-400.0,0.00038904,15]
[359863386,1746378632987,-400.0,0.00038904,15]
[359863387,1746378632997,-400.0,0.00038904,15]
[359863388,1746378633007,-400.0,0.00038904,15]
[359863389,1746378633017,-400.0,0.00038904,15]
[359863390,1746378633027,-400.0,0.00038904,15]
[359863391,1746378633037,-433.08,0.00038904,15]
[359863392,1746378633048,-400.0,0.00038904,15]
[359863393,1746378633058,-483.87697905,0.00038904,7]
[359863394,1746378633069,-400.0,0.00038904,15]
[359863395,1746378633078,-400.0,0.00038904,15]
[359863396,1746378633089,-413.85,0.00038904,15]
[359863397,1746378633099,-400.0,0.00038904,15]
[359863398,1746378633109,-441.44,0.00038904,15]
[359863399,1746378633119,-225.18472358,0.00038904,15]
[359863400,1746378633128,-400.0,0.00038904,15]
[359863401,1746378633258,-217.17090964,0.00038904,15]
[359863402,1746378633269,-255.293564,0.00038904,15]
[359863403,1746378633279,-400.0,0.00038904,15]
[359863404,1746378633288,-400.0,0.00038904,15]
[359863405,1746378633299,-400.0,0.00038904,15]
[359863406,1746378633309,-404.35331919,0.00038904,15]
[359863407,1746378633318,-400.0,0.00038904,15]
[359863408,1746378633329,-290.47,0.00038904,15]
[359863409,1746378633338,-400.0,0.00038904,15]
[359863410,1746378633348,-400.0,0.00038904,15]
[359863411,1746378633357,-227.42289519,0.00038904,15]
[359863443,1746378638147,-172.57710481,0.00038904,15]
[359863445,1746378638157,-400.0,0.00038904,15]
[359863447,1746378638167,-358.22297948,0.00038904,15]
[359863449,1746378638179,-41.77702052,0.00038904,15]
[359863451,1746378638188,-400.0,0.00038904,15]
[359863453,1746378638198,-400.0,0.00038904,15]
[359863455,1746378638207,-400.0,0.00038904,15]
[359863457,1746378638217,-235.07726838,0.00038904,15]
[359864176,1746379550148,-192.178697,0.00027397,2]
[359864177,1746379550175,-108.37574773,0.00033165,2]
[359864184,1746379628107,-656.17905788,0.00025205,2]
[359864185,1746379628128,-83.80294927,0.00033165,2]
[359864186,1746379628150,-1600.0,0.00036148,3]
[359864187,1746379628173,-388.0,0.00036148,3]
[359864188,1746379628199,-400.0,0.00036148,2]
[359864189,1746379628221,-3745.6763552,0.00036149,2]
[359864190,1746379628243,-770.01882535,0.00036804,2]
[359864191,1746379628265,-300.0,0.00037048,3]
[359864192,1746379628289,-1096.3094493,0.00037049,4]
[359864193,1746379628312,-686.7,0.00037273,60]
[359864194,1746379628335,-686.7,0.00037423,55]
[359864195,1746379628363,-686.7,0.00037573,67]
[359864196,1746379628385,-22.15617835,0.00037712,2]
[359864205,1746379646131,-2382.24835453,0.00029,3]
[359864206,1746379646154,-385.33649266,0.00037723,64]
[359864209,1746379651104,-211.94850064,0.00037723,64]
[359864210,1746379654100,-775.42438347,0.00026,30]
[359864211,1746379654125,-89.4150067,0.00037723,64]
[359864212,1746379654149,-686.7,0.00037873,63]
[359864213,1746379654173,-686.7,0.00038023,73]
[359864214,1746379654197,-101.80726233,0.00038082,30]
[359864233,1746379746138,-151.0,0.00024,14]
[359864234,1746379746159,-668.49721957,0.00025,2]
[359864272,1746379832236,-22.91817014,0.00025,2]
[359864274,1746379832246,-1342.05227489,0.000269,2]
[359864276,1746379832256,-313.73916419,0.00027,3]
[359864278,1746379832265,-313.73916419,0.00027,3]
[359864280,1746379832276,-400.0,0.00031999,2]
[359864282,1746379832287,-800.0,0.00031999,3]
[359864284,1746379832296,-3775.72159006,0.00032,30]
[359864287,1746379832313,-1346.76538087,0.00032,30]
[359864473,1746379838348,-1094.98775584,0.00032,30]
[359864481,1746379838418,-9374.04347034,0.00032,30]
[359864483,1746379838428,-420.0,0.00034417,2]
[359864485,1746379838437,-217.90215726,0.00035622,15]
[359864487,1746379838447,-175.49944951,0.00035622,15]
[359864742,1746379840785,-324.50055049,0.00035622,15]
[359864744,1746379840794,-500.0,0.00035622,15]
[359864746,1746379840804,-500.0,0.00035622,15]
[359864747,1746379840813,-500.0,0.00035622,15]
[359864748,1746379840822,-500.0,0.00035622,15]
[359864749,1746379840831,-500.0,0.00035622,15]
[359864750,1746379840840,-500.0,0.00035622,15]
[359864751,1746379840849,-500.0,0.00035622,15]
[359864752,1746379840858,-287.49956679,0.00035622,15]
[359864753,1746379840867,-513.34588357,0.00035623,2]
[359864754,1746379840877,-877.0475594,0.00037049,4]
[359864755,1746379840886,-271.5433147,0.00037123,30]
[359864756,1746379840896,-686.7,0.00038173,47]
[359864757,1746379840905,-686.7,0.00038323,46]
[359864758,1746379840915,-686.7,0.00038473,120]
[359864759,1746379840924,-686.7,0.00038623,120]
[359864760,1746379840933,-162.43144712,0.00038699,2]
[359864768,1746379841052,-160.0,0.00038753,2]
[359864770,1746379841063,-686.7,0.00038773,120]
[359864772,1746379841072,-500.0,0.00038799,15]
[359864773,1746379841082,-254.57330782,0.00038799,15]
[359864776,1746379841092,-202.38126322,0.00038799,7]
[359864777,1746379841101,-318.84485603,0.00038799,15]
[359864779,1746379841110,-607.17439986,0.00038799,15]
[359864781,1746379841119,-999.0,0.00038799,120]
[359864784,1746379841129,-83045.06688713,0.000388,2]
[359864926,1746379843447,-3498.5091855,0.000388,2]
[359864933,1746379843504,-6734.68392737,0.000388,2]
[359864935,1746379843515,-164.21011832,0.000388,2]
[359864937,1746379843524,-545.0,0.00038895,2]
[359864939,1746379843533,-253.92682174,0.000389,2]
[359864940,1746379843542,-700.14863448,0.000389,3]